bitfinex/quotes_ETHUSD_20250517
["timestamp","ask_amount","ask_price","bid_price","bid_amount"]
[1747525998978,15.595,2476.0,2475.7,4.03920617]
[1747525999808,15.595,2476.0,2475.5,4.80081753]
[1747526000036,0.5144,2475.9,2475.5,4.80078449]
[1747526000193,19.63391173,2476.0,2475.5,4.80078449]
[1747526001504,19.63391173,2476.0,2475.6,4.42190419]
[1747526002228,4.0389454,2475.9,2475.6,0.38248097]
[1747526002912,19.63385452,2476.0,2475.5,4.80080629]
[1747526003623,4.03902769,2475.9,2475.4,4.03971991]
[1747526004424,4.03911656,2475.8,2475.4,4.03971991]
[1747526004591,19.63386086,2476.0,2475.5,4.03949282]
[1747526004797,19.63386086,2476.0,2475.5,4.42203537]
[1747526005327,4.03897477,2475.9,2475.5,0.38254255]
[1747526006240,19.6338642,2476.0,2475.5,4.42210221]
[1747526006533,19.6338642,2476.0,2475.6,0.38254255]
[1747526006683,4.03895093,2475.9,2475.6,0.38254255]
[1747526007327,4.03926162,2475.7,2475.6,0.38254255]
[1747526007530,0.5144,2475.8,2475.5,0.38254255]
[1747526007531,4.55356624,2475.8,2475.5,0.38254255]
[1747526008030,4.03928619,2475.7,2475.5,0.38254255]
[1747526008210,4.55354382,2475.8,2475.5,0.38254255]
[1747526008385,4.03926162,2475.7,2475.5,0.38254255]
[1747526008585,7.595,2475.6,2475.5,0.38254255]
[1747526009029,7.595,2475.6,2475.3,0.38254255]
[1747526009198,7.595,2475.5,2475.3,0.38254255]
[1747526010144,7.595,2475.5,2475.3,4.42233809]
[1747526010337,7.595,2475.5,2475.3,4.42235721]
[1747526010703,7.595,2475.5,2475.4,0.38254255]
[1747526022149,7.595,2475.5,2475.3,4.0398191]
[1747526023476,7.595,2475.5,2475.4,0.38254255]
[1747526030577,7.595,2475.5,2475.3,0.38254255]
[1747526031263,7.595,2475.5,2475.3,4.42244472]
[1747526031662,4.55359084,2475.8,2475.5,4.03951662]
[1747526031663,8.0,2475.8,2475.5,4.03951662]
[1747526031875,7.593,2475.7,2475.5,4.03951662]
[1747526032570,7.593,2475.7,2475.4,5.25239977]
[1747526033280,7.593,2475.7,2475.4,1.21274255]
[1747526033890,7.593,2475.7,2475.5,0.38254255]
[1747526036202,8.0,2475.8,2475.5,4.42211071]
[1747526036495,15.593,2475.8,2475.5,4.42211071]
[1747526037071,15.593,2475.8,2475.6,0.38254255]
[1747526038898,15.593,2475.8,2475.5,0.38254255]
[1747526040196,19.63225753,2475.8,2475.5,0.38254255]
[1747526040399,4.03942478,2475.6,2475.5,0.38254255]
[1747526040563,12.55382478,2475.6,2475.5,0.38254255]
[1747526041486,22.91238374,2475.6,2475.5,0.38254255]
[1747526041683,47.23222222,2475.6,2475.5,0.38254255]
[1747526041870,46.50464022,2475.6,2475.5,0.38254255]
[1747526042074,4.04089384,2474.7,2474.6,0.38254255]
[1747526042263,27.74129384,2474.7,2474.6,0.38254255]
[1747526043689,12.04105714,2474.6,2474.5,0.47637789]
[1747526044402,0.5144,2474.7,2474.5,0.47637789]
[1747526044579,15.593,2474.9,2474.5,0.47637789]
[1747526044769,15.593,2474.9,2474.5,4.51756228]
[1747526044969,15.593,2474.9,2474.6,0.52801623]
[1747526045311,7.593,2474.9,2474.6,0.52801623]
[1747526045620,4.04077279,2474.8,2474.5,0.47637789]
[1747526045996,4.04077279,2474.8,2474.4,0.7626]
[1747526046383,11.6336286,2474.9,2474.4,4.80397238]
[1747526046709,10.05,2475.0,2474.4,4.80387489]
[1747526046875,7.593,2474.8,2474.4,4.80387489]
[1747526047073,7.593,2474.8,2474.5,0.48038749]
[1747526047275,7.593,2474.8,2474.5,4.52153067]
[1747526048506,17.643,2475.0,2474.8,4.04069485]
[1747526048715,10.05,2475.0,2474.9,4.04056729]
[1747526048915,10.05,2475.0,2474.9,1.56893963]
[1747526049224,10.05,2475.0,2474.9,5.60950692]
[1747526049420,10.05,2475.0,2474.9,0.80813963]
[1747526049715,10.05,2475.0,2474.7,4.80163692]
[1747526051212,10.05,2475.0,2474.8,4.04071823]
[1747526053520,15.186,2475.2,2474.8,4.04071823]
[1747526054091,15.186,2475.2,2474.7,0.7608]
[1747526054386,15.186,2475.2,2474.6,4.04105714]
[1747526054629,19.22617003,2475.2,2474.7,4.04083388]
[1747526054798,15.186,2475.2,2474.8,4.04071496]
[1747526057124,19.22608169,2475.2,2474.7,4.0408057]
[1747526057331,4.04024359,2475.1,2474.6,4.04099727]
[1747526057626,4.04024359,2475.1,2474.5,4.79146602]
[1747526058004,19.22614184,2475.2,2474.7,4.04088793]
[1747526058199,15.186,2475.2,2474.8,4.04067101]
[1747526061725,7.592,2475.1,2474.9,4.81498758]
[1747526062858,7.592,2475.1,2475.0,4.04040404]
[1747526063063,7.592,2475.1,2474.9,4.8149856]
[1747526064266,7.592,2475.1,2474.9,0.7745]
[1747526064434,7.592,2475.1,2474.8,4.04064295]
[1747526065173,7.592,2475.1,2474.9,4.04056273]
[1747526069169,7.592,2475.1,2474.8,4.92625904]
[1747526071236,12.0396015,2475.5,2474.9,4.0404997]
[1747526071444,8.0,2475.3,2475.0,4.82778415]
[1747526071644,8.0,2475.4,2475.0,4.82778415]
[1747526074083,8.0,2475.4,2475.0,1.58884236]
[1747526074291,12.03975536,2475.4,2475.0,1.58884236]
[1747526074650,12.03975536,2475.4,2475.0,5.62922103]
[1747526076183,12.03975536,2475.4,2475.0,0.7875]
[1747526077184,4.04006206,2475.3,2475.0,0.7875]
[1747526077354,4.04024079,2475.1,2474.6,5.34915516]
[1747526078082,4.55454581,2475.2,2474.7,4.04087494]
[1747526079266,4.04027577,2475.1,2474.6,5.3491591]
[1747526079493,4.04027577,2475.1,2474.6,6.3524066]
[1747526080607,4.04027577,2475.1,2474.6,2.31142539]
[1747526080903,4.55452163,2475.2,2474.7,4.04082143]
[1747526082266,4.0404772,2475.0,2474.6,1.30817789]
[1747526082805,4.04028591,2475.1,2474.6,5.3491581]
[1747526083897,11.62942179,2475.0,2474.6,0.47637789]
[1747526084107,11.62942179,2475.0,2474.6,4.51741498]
[1747526084514,4.0405924,2474.9,2474.6,0.47637789]
[1747526084684,4.04089384,2474.7,2474.6,0.47637789]
[1747526085186,12.04089384,2474.7,2474.6,0.47637789]
[1747526085387,12.55529384,2474.7,2474.6,0.47637789]
[1747526086711,4.0412495,2474.5,2473.9,0.47637789]
[1747526086872,4.04155121,2474.3,2473.9,0.47637789]
[1747526087786,7.589,2474.4,2473.9,1.00500304]
[1747526088121,7.589,2474.4,2474.0,4.8095439]
[1747526088610,7.589,2474.4,2474.1,4.04185257]
[1747526088798,10.05,2474.6,2474.3,4.04141806]
[1747526089000,7.59,2474.5,2474.4,4.80898376]
[1747526090321,7.59,2474.5,2474.4,0.7676]
[1747526093416,7.59,2474.5,2474.4,4.80898376]
[1747526094612,7.59,2474.5,2474.4,0.7676]
[1747526094919,7.59,2474.5,2474.2,4.79751844]
[1747526095614,7.59,2474.5,2474.0,1.26317789]
[1747526095776,11.63127891,2474.5,2474.0,5.30517369]
[1747526098029,11.63127891,2474.5,2474.0,4.8287958]
[1747526100224,0.5144,2474.4,2473.8,0.7868]
[1747526100512,0.5144,2474.4,2473.7,0.47637789]
[1747526100513,4.55647749,2474.0,2473.7,0.47637789]
[1747526100686,4.04236397,2473.8,2473.7,0.47637789]
[1747526102231,4.55676397,2473.8,2473.7,0.47637789]
[1747526102895,12.55676397,2473.8,2473.7,0.47637789]
[1747526103499,4.04275025,2473.6,2473.1,4.04338863]
[1747526103731,11.63375025,2473.6,2473.1,4.04338863]
[1747526104104,7.591,2473.6,2473.2,4.04330504]
[1747526104835,12.55681349,2473.8,2473.3,4.04309101]
[1747526105040,7.589,2473.7,2473.3,4.04309101]
[1747526106623,11.63153226,2473.7,2473.2,4.04327819]
[1747526109445,4.04277343,2473.6,2473.1,4.04343276]
[1747526109609,11.63160896,2473.7,2473.2,4.0433146]
[1747526111545,4.04277243,2473.6,2473.1,4.04345454]
[1747526111752,4.04277243,2473.6,2473.2,4.04333849]
[1747526114065,11.63161701,2473.7,2473.2,4.04333849]
[1747526114443,4.04272297,2473.6,2473.1,4.04338645]
[1747526114644,4.04272297,2473.6,2473.1,4.93159394]
[1747526114966,11.63159352,2473.7,2473.2,4.04334078]
[1747526116586,4.04270676,2473.6,2473.1,4.93163618]
[1747526116873,11.6316047,2473.7,2473.2,4.04333214]
[1747526118078,7.589,2473.7,2473.3,4.04311162]
[1747526118263,7.59,2473.7,2473.3,4.84099664]
[1747526119792,7.59,2473.7,2473.4,4.04299005]
[1747526119955,7.59,2473.7,2473.3,4.84099958]
[1747526121294,11.63255259,2473.7,2473.3,0.7979]
[1747526121793,11.63255259,2473.7,2473.3,4.84106831]
[1747526122091,7.59,2473.7,2473.3,4.84106831]
[1747526122790,7.59,2473.7,2473.4,4.04301117]
[1747526122998,7.59,2473.7,2473.3,4.84101138]
[1747526123801,11.63254059,2473.7,2473.3,4.84101138]
[1747526125813,7.59,2473.7,2473.3,4.84101138]
[1747526125989,11.6325361,2473.7,2473.3,4.84101138]
[1747526126189,11.6325361,2473.7,2473.3,0.7979]
[1747526127012,4.0427266,2473.6,2473.3,0.7979]
[1747526127176,4.0427266,2473.6,2473.1,4.87496376]
[1747526127518,4.0427266,2473.6,2473.2,4.04333422]
[1747526127710,11.63262023,2473.7,2473.2,4.04333422]
[1747526128409,4.04279728,2473.6,2473.1,4.87507279]
[1747526128589,4.04285579,2473.5,2473.1,5.84440729]
[1747526129118,4.04278692,2473.6,2473.1,5.84440729]
[1747526129294,4.04278692,2473.6,2473.1,6.32078518]
[1747526129724,4.04278692,2473.6,2473.2,4.04333143]
[1747526129886,11.63261094,2473.7,2473.2,4.04333143]
[1747526130309,11.63259984,2473.7,2473.2,4.04327394]
[1747526130987,11.63259984,2473.7,2473.1,2.27731239]
[1747526130988,4.04269343,2473.6,2473.1,6.32069997]
[1747526131636,11.63260361,2473.7,2473.2,4.04330477]
[1747526132732,19.22360361,2473.7,2473.2,4.51968266]
[1747526133846,15.181,2473.7,2473.3,4.04310894]
[1747526134214,19.22359481,2473.7,2473.2,4.51964476]
[1747526134414,19.22359481,2473.7,2473.3,4.0431713]
[1747526134949,19.22359481,2473.7,2473.3,4.51954919]
[1747526135984,19.22359481,2473.7,2473.3,0.47637789]
[1747526136873,15.181,2473.7,2473.3,4.51953229]
[1747526137553,15.181,2473.7,2473.4,4.04301338]
[1747526137881,15.181,2473.7,2473.3,4.51951911]
[1747526138940,19.22353073,2473.7,2473.3,4.51951911]
[1747526139252,19.22353073,2473.7,2473.3,0.47637789]
[1747526140273,4.5574177,2473.4,2473.3,0.47637789]
[1747526140974,12.5574177,2473.4,2473.3,0.47637789]
[1747526141171,4.04349044,2473.2,2472.9,0.47637789]
[1747526141338,11.63055173,2473.1,2472.9,0.47637789]
[1747526142292,11.63051497,2473.1,2472.9,0.47637789]
[1747526142681,7.587,2473.1,2472.9,0.47637789]
[1747526143198,11.63050817,2473.1,2472.9,0.47637789]
[1747526143399,7.587,2473.1,2472.9,0.47637789]
[1747526143900,11.63051354,2473.1,2472.9,0.47637789]
[1747526144195,12.14491354,2473.1,2472.9,0.47637789]
[1747526144671,4.04367165,2473.0,2472.9,0.47637789]
[1747526145080,4.04367165,2473.0,2472.5,0.47637789]
[1747526145403,4.04367165,2473.0,2472.5,4.52075197]
[1747526145596,0.5144,2472.9,2472.5,0.47637789]
[1747526145871,0.5144,2472.9,2472.5,4.52079908]
[1747526146380,7.587,2473.0,2472.6,4.49639166]
[1747526146539,7.587,2473.0,2472.9,4.04383517]
[1747526146743,7.587,2473.0,2472.8,0.7852]
[1747526147782,7.587,2473.0,2472.8,4.8291965]
[1747526149492,7.587,2473.0,2472.8,0.7852]
[1747526149651,7.587,2473.0,2472.6,5.75792845]
[1747526149982,7.587,2473.0,2472.6,5.30584854]
[1747526150179,7.587,2473.0,2472.7,4.04416031]
[1747526150370,7.587,2473.0,2472.6,5.3058207]
[1747526151179,4.55834113,2472.9,2472.6,0.47637789]
[1747526151379,0.5144,2472.9,2472.6,0.47637789]
[1747526151883,4.55832506,2472.9,2472.6,0.47637789]
[1747526152087,4.04401966,2472.8,2472.6,0.47637789]
[1747526152383,4.04401966,2472.8,2472.4,0.47637789]
[1747526153546,4.55832165,2472.9,2472.4,4.52099816]
[1747526154181,4.04401726,2472.8,2472.4,0.47637789]
[1747526154352,4.04419282,2472.7,2472.4,0.47637789]
[1747526154887,4.04419282,2472.7,2472.2,4.52129362]
[1747526155088,4.04414083,2472.8,2472.3,4.04476642]
[1747526155790,4.55832527,2472.9,2472.4,4.04461743]
[1747526156884,4.04448813,2472.6,2472.2,0.47637789]
[1747526157292,4.04426704,2472.7,2472.2,4.52135116]
[1747526157458,4.04426704,2472.7,2472.2,4.04497327]
[1747526158786,4.04426704,2472.7,2472.3,4.0448116]
[1747526158992,8.5144,2472.9,2472.2,4.04494047]
[1747526159284,8.5144,2472.9,2472.2,0.789]
[1747526159477,12.55832276,2472.9,2472.4,4.04461954]
[1747526159874,4.0440758,2472.8,2472.3,4.04473507]
[1747526160080,11.6310758,2472.8,2472.3,4.04473507]
[1747526160259,4.04419709,2472.7,2472.2,4.83388118]
[1747526160965,4.04442116,2472.6,2472.2,0.789]
[1747526161169,4.04450372,2472.5,2472.1,4.04513581]
[1747526161369,4.04450372,2472.5,2472.0,5.28510488]
[1747526161764,0.5144,2472.5,2472.1,4.04504079]
[1747526161994,4.0443846,2472.6,2472.1,4.04504079]
[1747526162461,4.04449741,2472.5,2472.1,4.04504079]
[1747526162665,4.04438851,2472.6,2472.1,4.04504079]
[1747526163495,7.589,2472.6,2472.0,0.47637789]
[1747526163665,11.63341316,2472.6,2472.1,4.04511321]
[1747526164191,8.5144,2472.9,2472.2,0.7635]
[1747526164368,7.587,2472.6,2472.3,4.04469598]
[1747526164575,7.587,2472.6,2472.2,4.80843864]
[1747526165289,11.63132949,2472.6,2472.2,0.7635]
[1747526166005,7.587,2472.6,2472.2,4.8084473]
[1747526166298,7.587,2472.6,2472.3,4.04479622]
[1747526166696,7.587,2472.6,2472.4,4.0446368]
[1747526166900,7.587,2472.6,2472.3,4.04473279]
[1747526167498,7.587,2472.6,2472.2,0.7635]
[1747526167703,7.587,2472.6,2472.3,4.04470288]
[1747526167897,7.587,2472.6,2472.4,4.04463758]
[1747526168203,15.176,2472.7,2472.5,4.04448938]
[1747526168903,15.177,2472.8,2472.5,4.04442777]
[1747526169197,15.177,2472.8,2472.6,4.04429334]
[1747526169569,4.04378844,2473.0,2472.6,4.04429334]
[1747526169769,7.59,2472.9,2472.7,4.04414314]
[1747526170102,10.05,2473.1,2472.5,0.7851]
[1747526170301,17.637,2473.1,2472.6,4.04432581]
[1747526170463,17.637,2473.1,2472.7,4.04416225]
[1747526172703,10.05,2473.1,2472.9,4.0437913]
[1747526173002,7.586,2473.1,2473.0,4.04367165]
[1747526173202,7.586,2473.1,2472.9,4.04374836]
[1747526173500,15.172,2473.2,2472.8,4.79763645]
[1747526173805,15.172,2473.2,2472.9,4.04375692]
[1747526174604,15.172,2473.2,2472.8,4.79761402]
[1747526176101,7.586,2473.2,2472.8,4.79761402]
[1747526176284,7.586,2473.2,2472.9,4.04381638]
[1747526176807,7.586,2473.2,2472.8,4.79762747]
[1747526178511,0.5144,2473.6,2472.9,0.55]
[1747526178816,25.22,2473.7,2473.3,4.04317193]
[1747526178977,25.22,2473.7,2473.3,4.04312449]
[1747526180018,25.22,2473.7,2473.1,5.33662715]
[1747526180019,25.22,2473.7,2473.4,4.04299473]
[1747526180219,25.22,2473.7,2473.3,4.04317284]
[1747526180458,29.26253808,2473.7,2473.2,4.04325416]
[1747526183536,25.22,2473.7,2473.3,4.04315819]
[1747526186438,25.22,2473.7,2473.4,4.04299543]
[1747526188240,17.635,2473.7,2473.3,0.04043015]
[1747526188399,17.635,2473.7,2473.4,0.7736]
[1747526189131,17.635,2473.7,2473.5,4.04269634]
[1747526190124,17.635,2473.7,2473.4,4.04294491]
[1747526190323,17.635,2473.7,2473.5,4.04277902]
[1747526190513,7.585,2473.7,2473.5,4.04277902]
[1747526195541,7.585,2473.7,2473.6,4.04269081]
[1747526195701,7.585,2473.7,2473.5,4.04278595]
[1747526196750,7.585,2473.7,2473.6,4.04269081]
[1747526197045,8.5144,2474.0,2473.6,5.00134786]
[1747526197046,7.58,2473.9,2473.6,5.00134786]
[1747526198249,7.58,2473.9,2473.6,0.95865705]
[1747526198418,7.58,2473.9,2473.5,4.84279368]
[1747526200702,7.58,2473.9,2473.6,4.04268589]
[1747526201840,0.5144,2474.2,2473.6,4.04269081]
[1747526202056,18.1474,2474.5,2474.2,4.04158866]
[1747526202237,8.0974,2474.5,2474.2,4.04158866]
[1747526202401,15.162,2474.5,2474.3,4.04153927]
[1747526202603,4.5552967,2474.7,2474.3,4.04153927]
[1747526202604,0.5144,2474.7,2474.4,4.04138376]
[1747526202985,0.5144,2474.7,2474.3,4.04148595]
[1747526202986,7.579,2474.7,2474.3,4.04148595]
[1747526203189,7.579,2474.7,2474.3,4.0415471]
[1747526204080,7.579,2474.7,2474.2,4.04158875]
[1747526204289,4.04089746,2474.7,2474.2,4.04162162]
[1747526204468,11.61989746,2474.7,2474.2,4.04162162]
[1747526204782,7.579,2474.7,2474.2,4.04162225]
[1747526205285,7.579,2474.7,2474.3,4.04150555]
[1747526205580,11.61990687,2474.7,2474.2,4.04163926]
[1747526205788,7.579,2474.7,2474.3,4.04150991]
[1747526206486,7.579,2474.7,2474.4,4.0413558]
[1747526207071,7.579,2474.7,2474.1,4.8258482]
[1747526207238,7.579,2474.7,2474.2,0.48258482]
[1747526208161,7.579,2474.7,2474.3,4.04153634]
[1747526210973,11.61990856,2474.7,2474.2,4.52416195]
[1747526211175,7.579,2474.7,2474.3,4.0415142]
[1747526211873,7.579,2474.7,2474.3,4.0415471]
[1747526213176,7.579,2474.7,2474.4,4.04136496]
[1747526213473,7.576,2474.7,2474.5,4.041218]
[1747526214538,7.579,2474.8,2474.2,4.52424998]
[1747526214738,16.0904,2475.1,2474.7,4.04079068]
[1747526214943,8.0904,2475.1,2474.7,4.04079068]
[1747526215643,8.0,2475.0,2474.7,4.04079068]
[1747526216061,8.0,2475.0,2474.6,4.04097038]
[1747526216280,12.04044248,2475.0,2474.4,4.04135539]
[1747526216454,12.04044248,2475.0,2474.5,0.48660554]
[1747526217076,12.04044248,2475.0,2474.6,4.04104391]
[1747526218677,8.0,2475.0,2474.6,4.04104391]
[1747526218855,12.04043708,2475.0,2474.5,4.52772688]
[1747526219672,4.55524444,2474.8,2474.3,0.8247]
[1747526219882,0.5144,2474.8,2474.3,0.8247]
[1747526220078,4.5551955,2474.8,2474.3,4.86612546]
[1747526220246,4.5551955,2474.8,2474.4,4.04136054]
[1747526223445,0.5144,2474.8,2474.4,4.04136054]
[1747526223659,0.5144,2474.8,2474.4,4.98039127]
[1747526224152,0.5144,2474.8,2474.5,4.04117923]
[1747526225983,4.04056966,2474.9,2474.5,4.04117923]
[1747526227388,12.55489663,2475.0,2474.5,4.04117923]
[1747526227683,12.55489663,2475.0,2474.6,4.04105252]
[1747526228783,17.627,2475.2,2474.7,0.7904]
[1747526228993,7.572,2475.1,2474.8,4.04063536]
[1747526229210,7.572,2475.1,2474.9,4.0405569]
[1747526229353,7.572,2475.1,2474.8,4.04066983]
[1747526229991,7.572,2475.1,2474.7,4.83120615]
[1747526230165,7.572,2475.1,2474.8,0.88722257]
[1747526230494,7.572,2475.1,2474.8,4.92794395]
[1747526230677,7.572,2475.1,2474.9,4.04050694]
[1747526230881,7.572,2475.1,2474.8,4.92794395]
[1747526230882,7.572,2475.1,2474.8,4.92781238]
[1747526231080,7.572,2475.1,2474.9,0.57182124]
[1747526231280,7.572,2475.1,2474.9,0.55851307]
[1747526231477,7.571,2475.1,2474.9,0.55851307]
[1747526231678,7.571,2475.1,2474.9,4.59904493]
[1747526232194,7.571,2475.1,2474.9,0.55851307]
[1747526232393,17.626,2475.2,2474.9,0.55851307]
[1747526232605,25.197,2475.2,2474.9,0.55851307]
[1747526232759,25.197,2475.2,2474.9,4.59902944]
[1747526232962,17.626,2475.2,2474.9,4.59902944]
[1747526233165,25.197,2475.2,2474.9,4.59898718]
[1747526233365,17.626,2475.2,2474.9,4.59898718]
[1747526233567,17.626,2475.2,2475.0,4.90434603]
[1747526233801,7.576,2475.2,2475.1,4.04024079]
[1747526234667,7.57,2475.5,2475.2,4.04000089]
[1747526235168,7.57,2475.5,2475.0,5.70789676]
[1747526235169,7.57,2475.5,2475.1,4.04015129]
[1747526235367,7.57,2475.5,2475.1,5.0149561]
[1747526235981,11.6096562,2475.5,2475.1,0.97480481]
[1747526236180,11.6096562,2475.5,2475.0,4.84395612]
[1747526238969,7.57,2475.5,2475.0,4.84398667]
[1747526239168,7.57,2475.5,2475.1,4.04024079]
[1747526243609,0.5144,2475.7,2475.1,4.08064016]
[1747526243809,0.5144,2475.7,2475.3,4.03990314]
[1747526245209,0.5144,2475.7,2475.0,0.8036]
[1747526245507,4.55425356,2475.4,2474.9,4.5168595]
[1747526246301,4.55425356,2475.4,2474.9,6.23602863]
[1747526246498,4.55425356,2475.4,2475.0,4.04040232]
[1747526246900,4.55425356,2475.4,2474.9,6.23602677]
[1747526247711,0.5144,2475.4,2475.0,4.04038228]
[1747526247892,0.5144,2475.4,2475.1,4.04019514]
[1747526248498,4.55389842,2475.6,2475.1,4.04019514]
[1747526249511,4.55393144,2475.6,2475.1,4.04019514]
[1747526250382,4.03960635,2475.5,2475.1,4.04019514]
[1747526250712,0.5144,2475.6,2475.1,4.04009363]
[1747526250914,0.5144,2475.6,2475.2,4.03997741]
[1747526251619,8.0,2475.8,2475.1,5.43963641]
[1747526251809,20.11957056,2475.8,2475.3,4.03990272]
[1747526252009,4.03928497,2475.7,2475.2,4.03998757]
[1747526252310,4.03928497,2475.7,2475.3,4.03990714]
[1747526252509,20.11957628,2475.8,2475.3,4.03990714]
[1747526253615,16.0804,2475.8,2475.1,1.39946407]
[1747526253821,4.03945056,2475.6,2475.1,5.43959012]
[1747526254242,4.03931498,2475.7,2475.2,5.03557761]
[1747526254812,4.03926162,2475.7,2475.2,5.03557761]
[1747526255122,4.03943746,2475.6,2475.2,5.03557761]
[1747526256987,4.03943746,2475.6,2475.2,0.99562473]
[1747526257322,4.03967298,2475.5,2475.0,4.51677708]
[1747526257914,4.03967298,2475.5,2475.0,4.04039919]
[1747526259325,0.5144,2475.7,2475.0,0.55]
[1747526259635,4.55366816,2475.7,2475.2,4.03997782]
[1747526260636,4.03953474,2475.6,2475.1,1.25057789]
[1747526260839,0.5144,2475.7,2475.1,1.25057789]
[1747526260840,4.55377006,2475.7,2475.2,4.04007135]
[1747526261538,0.5144,2475.7,2475.2,4.04007135]
[1747526261697,0.5144,2475.7,2475.1,1.8346749]
[1747526261898,4.55366749,2475.7,2475.2,4.03996209]
[1747526262140,0.5144,2475.7,2475.3,4.03987204]
[1747526262312,19.60417436,2475.8,2475.3,4.03987204]
[1747526263225,4.03934734,2475.7,2475.2,4.04007495]
[1747526263430,11.60234734,2475.7,2475.2,4.04007495]
[1747526264346,11.60234734,2475.7,2475.2,5.02816368]
[1747526264745,7.563,2475.7,2475.3,4.03981015]
[1747526265249,11.60230171,2475.7,2475.2,5.02809471]
[1747526266042,11.60230171,2475.7,2475.3,4.03990009]
[1747526266237,7.563,2475.7,2475.3,4.03990009]
[1747526266543,11.60226379,2475.7,2475.2,5.02805785]
[1747526267048,7.563,2475.7,2475.3,4.03986912]
[1747526268445,11.60229479,2475.7,2475.3,4.03986912]
[1747526268645,11.60229479,2475.7,2475.2,5.50447596]
[1747526269348,11.60229479,2475.7,2475.3,4.03988141]
[1747526270256,4.03942511,2475.6,2475.2,5.50445009]
[1747526271746,11.60234171,2475.7,2475.2,5.50445009]
[1747526271941,11.60234171,2475.7,2475.2,4.51636136]
[1747526272744,7.563,2475.7,2475.3,4.03991188]
[1747526272907,15.562,2475.8,2475.4,4.03958881]
[1747526273106,15.562,2475.8,2475.4,4.80658881]
[1747526273307,15.562,2475.8,2475.5,4.03951672]
[1747526273840,8.0,2475.8,2475.5,4.03951672]
[1747526274257,15.6384,2475.9,2475.5,4.92412727]
[1747526274436,15.124,2475.9,2475.5,4.92412727]
[1747526275446,7.563,2475.9,2475.5,4.92412727]
[1747526275738,7.563,2475.9,2475.5,5.40048493]
[1747526276240,11.6019373,2475.9,2475.5,1.36098844]
[1747526276446,4.03918364,2475.8,2475.5,0.47637789]
[1747526276613,4.55358364,2475.8,2475.5,0.47637789]
[1747526278052,0.5144,2475.8,2475.5,0.47637789]
[1747526278747,0.5144,2475.8,2475.4,4.03966821]
[1747526278944,4.55350984,2475.8,2475.4,4.03966821]
[1747526279344,0.5144,2475.8,2475.4,4.03966821]
[1747526282556,0.5144,2475.8,2475.3,0.47637789]
[1747526282557,8.5144,2475.8,2475.3,0.47637789]
[1747526282858,4.03947043,2475.6,2475.3,0.47637789]
[1747526283062,4.03935301,2475.7,2475.3,0.47637789]
[1747526284859,4.55356431,2475.8,2475.3,4.51629038]
[1747526285360,4.03928459,2475.7,2475.3,4.51629038]
[1747526285660,4.03928459,2475.7,2475.3,4.03991249]
[1747526287371,0.5144,2475.8,2475.3,4.03991249]
[1747526287538,4.03901027,2475.9,2475.4,4.03964815]
[1747526288058,7.558,2475.8,2475.4,4.03964815]
[1747526288235,11.59714799,2475.8,2475.3,4.03982973]
[1747526288850,11.59714799,2475.8,2475.3,4.51620762]
[1747526290669,7.558,2475.8,2475.3,0.47637789]
[1747526291039,11.59712462,2475.8,2475.3,4.5161484]
[1747526293574,7.558,2475.8,2475.3,0.47637789]
[1747526295077,11.59709976,2475.8,2475.4,4.03960653]
[1747526295239,11.59709976,2475.8,2475.3,4.51620353]
[1747526296980,4.0392929,2475.7,2475.3,4.51620353]
[1747526297169,4.5536929,2475.7,2475.3,4.51620353]
[1747526297369,0.5144,2475.7,2475.3,0.47637789]
[1747526297682,4.55415115,2475.4,2475.3,0.47637789]
[1747526298946,0.5144,2475.4,2475.0,4.51677084]
[1747526300258,0.5144,2475.4,2475.0,5.51453979]
[1747526300458,0.5144,2475.4,2475.1,4.04024079]
[1747526301795,4.03927658,2475.7,2475.4,4.03966079]
[1747526301796,0.5144,2475.7,2475.4,4.03966079]
[1747526302101,8.0694,2475.7,2475.3,4.039838]
[1747526303474,12.10871478,2475.7,2475.2,4.04000683]
[1747526304504,8.0694,2475.7,2475.2,4.04000683]
[1747526304867,8.0694,2475.7,2475.1,5.28948356]
[1747526305068,8.0694,2475.7,2475.2,4.039939]
[1747526305803,8.0694,2475.7,2475.3,4.03990988]
[1747526306280,8.0694,2475.7,2475.2,4.04006534]
[1747526306480,8.0694,2475.7,2475.4,4.03966259]
[1747526308170,8.0694,2475.7,2475.3,4.03982508]
[1747526308997,7.555,2475.7,2475.4,4.03965588]
[1747526309203,7.555,2475.7,2475.4,4.03966361]
[1747526310702,0.5144,2475.9,2475.6,4.03931381]
[1747526310904,16.0674,2475.9,2475.6,4.03931542]
[1747526311106,8.0674,2475.9,2475.5,4.03950382]
[1747526311420,12.10643547,2475.9,2475.3,0.47637789]
[1747526311705,0.5144,2475.6,2475.3,4.51628149]
[1747526313376,0.5144,2475.6,2475.3,0.47637789]
[1747526314398,4.55389926,2475.6,2475.3,0.47637789]
[1747526314937,4.55389926,2475.6,2475.1,4.51653174]
[1747526315092,0.5144,2475.6,2475.1,4.51653174]
[1747526315422,8.0,2475.8,2475.1,0.47637789]
[1747526315423,7.557,2475.5,2475.1,0.47637789]
[1747526315617,20.10623882,2475.4,2475.1,0.47637789]
[1747526316825,16.0664,2475.4,2475.1,0.47637789]
[1747526317121,8.0674,2475.4,2475.1,4.04015187]
[1747526317478,8.0674,2475.4,2475.0,4.04034374]
[1747526319520,0.5144,2475.4,2475.1,4.04015108]
[1747526319910,7.552,2475.5,2475.2,4.04002681]
[1747526320289,7.552,2475.5,2475.1,4.04017483]
[1747526320820,11.59160509,2475.5,2475.0,4.04030408]
[1747526321036,7.552,2475.5,2474.9,0.47637789]
[1747526321322,11.59165318,2475.5,2475.0,4.04038069]
[1747526322917,7.552,2475.5,2475.0,4.04040404]
[1747526323131,7.552,2475.5,2474.9,0.47637789]
[1747526323332,7.552,2475.5,2475.0,4.04040404]
[1747526323494,0.5144,2475.6,2475.3,4.03987131]
[1747526323696,7.552,2475.6,2475.3,4.03991435]
[1747526324528,17.607,2475.7,2475.3,4.03991435]
[1747526324718,25.158,2475.7,2475.3,4.03991435]
[1747526324922,29.19726938,2475.7,2475.3,4.03991435]
[1747526325125,29.19726938,2475.7,2475.2,4.86649682]
[1747526325330,29.19726938,2475.7,2475.2,4.03999682]
[1747526325523,4.0394394,2475.6,2475.1,4.04018359]